bitfinex/quotes_BTCUSD_20250608
["timestamp","ask_amount","ask_price","bid_price","bid_amount"]
[1749406976815,0.25231309,106400.0,106390.0,0.6084492]
[1749406977027,0.25231309,106400.0,106390.0,0.58969252]
[1749406977244,0.25231309,106400.0,106390.0,0.58969251]
[1749406978151,0.25231309,106400.0,106390.0,0.59909162]
[1749406979483,0.25231309,106400.0,106390.0,0.60849064]
[1749406982998,0.25231309,106400.0,106390.0,0.59909162]
[1749406983660,0.25231309,106400.0,106390.0,0.60849055]
[1749406985054,0.24291478,106400.0,106390.0,0.59909162]
[1749406985283,0.23351638,106400.0,106390.0,0.59905162]
[1749406988830,0.21831638,106400.0,106390.0,0.59905162]
[1749406990648,0.20241638,106400.0,106390.0,0.59905162]
[1749406998795,0.20241638,106400.0,106390.0,0.60845064]
[1749407001220,0.20241638,106400.0,106390.0,0.60845063]
[1749407004078,0.20241638,106400.0,106390.0,0.59905161]
[1749407005482,0.20241638,106400.0,106390.0,0.60845063]
[1749407010043,0.20241638,106400.0,106390.0,0.5896525]
[1749407014146,0.19301789,106400.0,106390.0,0.5896525]
[1749407018239,0.19301789,106400.0,106390.0,0.0967748]
[1749407018610,0.21063695,106400.0,106390.0,0.3827348]
[1749407018859,0.24203853,106400.0,106390.0,0.3827348]
[1749407019024,0.24203826,106400.0,106390.0,0.3827348]
[1749407019340,0.22441789,106400.0,106390.0,0.3827348]
[1749407019656,0.19301789,106400.0,106390.0,0.3827348]
[1749407020346,0.21063822,106400.0,106390.0,0.0967748]
[1749407020708,0.25764888,106400.0,106390.0,0.0967748]
[1749407020960,0.24002855,106400.0,106390.0,0.0967748]
[1749407021100,0.25763477,106400.0,106390.0,0.0967748]
[1749407021343,0.24002855,106400.0,106390.0,0.0967748]
[1749407021564,0.21062411,106400.0,106390.0,0.0967748]
[1749407022409,0.19301789,106400.0,106390.0,0.0967748]
[1749407032270,0.21062233,106400.0,106390.0,0.0967748]
[1749407032967,0.21062369,106400.0,106390.0,0.0967748]
[1749407033168,0.19301789,106400.0,106390.0,0.0967748]
[1749407033383,0.21062369,106400.0,106390.0,0.0967748]
[1749407033575,0.19301789,106400.0,106390.0,0.0967748]
[1749407033960,0.21062369,106400.0,106390.0,0.0967748]
[1749407035181,0.21062369,106400.0,106390.0,0.09677479]
[1749407036395,0.21062482,106400.0,106390.0,0.09677479]
[1749407036596,0.19301789,106400.0,106390.0,0.09677479]
[1749407036820,0.21062482,106400.0,106390.0,0.09677479]
[1749407038381,0.19301789,106400.0,106390.0,0.09677479]
[1749407038787,0.21062479,106400.0,106390.0,0.09677479]
[1749407038988,0.19301789,106400.0,106390.0,0.09677479]
[1749407039268,0.21062478,106400.0,106390.0,0.09677479]
[1749407039705,0.20562478,106400.0,106390.0,0.09677479]
[1749407040046,0.18801789,106400.0,106390.0,0.09677479]
[1749407040254,0.20563679,106400.0,106390.0,0.09677479]
[1749407040451,0.18801789,106400.0,106390.0,0.09677479]
[1749407040652,0.20563679,106400.0,106390.0,0.09677479]
[1749407041484,0.20563249,106400.0,106390.0,0.12787479]
[1749407042064,0.18801789,106400.0,106390.0,0.12787479]
[1749407042242,0.20563229,106400.0,106390.0,0.12787479]
[1749407042659,0.18801789,106400.0,106390.0,0.12787479]
[1749407042880,0.2056323,106400.0,106390.0,0.12787479]
[1749407043758,0.20563232,106400.0,106390.0,0.12787479]
[1749407044246,0.18801789,106400.0,106390.0,0.12787479]
[1749407044473,0.20562949,106400.0,106390.0,0.12787479]
[1749407044746,0.20562901,106400.0,106390.0,0.12787479]
[1749407044958,0.20562887,106400.0,106390.0,0.12787479]
[1749407045160,0.20562826,106400.0,106390.0,0.12787479]
[1749407045364,0.20562826,106400.0,106390.0,0.09677479]
[1749407045521,0.18801789,106400.0,106390.0,0.09677479]
[1749407045722,0.20562822,106400.0,106390.0,0.09677479]
[1749407045932,0.20562823,106400.0,106390.0,0.09677479]
[1749407047214,0.20562823,106400.0,106390.0,0.11257479]
[1749407047611,0.18801789,106400.0,106390.0,0.11257479]
[1749407047790,0.20562652,106400.0,106390.0,0.11257479]
[1749407048027,0.18801789,106400.0,106390.0,0.11257479]
[1749407048170,0.20562652,106400.0,106390.0,0.12877479]
[1749407049419,0.18801789,106400.0,106390.0,0.12877479]
[1749407049638,0.20562653,106400.0,106390.0,0.13817416]
[1749407049843,0.18801789,106400.0,106390.0,0.33556104]
[1749407050037,0.20562653,106400.0,106390.0,0.33556104]
[1749407050993,0.18801789,106400.0,106390.0,0.34496015]
[1749407051494,0.20562563,106400.0,106390.0,0.33556104]
[1749407051693,0.18801789,106400.0,106390.0,0.34496024]
[1749407051934,0.20562563,106400.0,106390.0,0.34496024]
[1749407052110,0.18801789,106400.0,106390.0,0.34496024]
[1749407052701,0.20562563,106400.0,106390.0,0.34496024]
[1749407052909,0.18801789,106400.0,106390.0,0.34496024]
[1749407053212,0.20562563,106400.0,106390.0,0.34496024]
[1749407053642,0.20562592,106400.0,106390.0,0.34496024]
[1749407053837,0.18801789,106400.0,106390.0,0.34496024]
[1749407054044,0.20562664,106400.0,106390.0,0.29416175]
[1749407054243,0.20562664,106400.0,106390.0,0.31946104]
[1749407054398,0.2056266,106400.0,106390.0,0.31946104]
[1749407055174,0.18801789,106400.0,106390.0,0.31946104]
[1749407055401,0.18801789,106400.0,106390.0,0.09677479]
[1749407055615,0.20562874,106400.0,106390.0,0.09677479]
[1749407055822,0.18801789,106400.0,106390.0,0.09677479]
[1749407056234,0.18801789,106400.0,106390.0,0.10617416]
[1749407057557,0.20562875,106400.0,106390.0,0.10617416]
[1749407057722,0.20562875,106400.0,106390.0,0.12247416]
[1749407058145,0.20562874,106400.0,106390.0,0.12247416]
[1749407058309,0.18801789,106400.0,106390.0,0.12247416]
[1749407058713,0.20562874,106400.0,106390.0,0.11307479]
[1749407058962,0.18801789,106400.0,106390.0,0.11307479]
[1749407059164,0.20562876,106400.0,106390.0,0.11307479]
[1749407059360,0.20562842,106400.0,106390.0,0.11307479]
[1749407059872,0.18801789,106400.0,106390.0,0.11307479]
[1749407060018,0.20562837,106400.0,106390.0,0.11307479]
[1749407060217,0.20562828,106400.0,106390.0,0.11307479]
[1749407060569,0.20562835,106400.0,106390.0,0.12817479]
[1749407060988,0.20562827,106400.0,106390.0,0.12817479]
[1749407061215,0.18801789,106400.0,106390.0,0.12817479]
[1749407061420,0.20562828,106400.0,106390.0,0.12817479]
[1749407061622,0.20562828,106400.0,106390.0,0.13757416]
[1749407062096,0.20562826,106400.0,106390.0,0.13757416]
[1749407062306,0.20562827,106400.0,106390.0,0.13757416]
[1749407063075,0.18801789,106400.0,106390.0,0.13757416]
[1749407063618,0.20562821,106400.0,106390.0,0.13757416]
[1749407064027,0.20562821,106400.0,106390.0,0.12817479]
[1749407064232,0.18801789,106400.0,106390.0,0.12817479]
[1749407064439,0.20562821,106400.0,106390.0,0.12817479]
[1749407064639,0.18801789,106400.0,106390.0,0.12817479]
[1749407064859,0.20562821,106400.0,106390.0,0.12817479]
[1749407065461,0.21672718,106400.0,106390.0,0.12817479]
[1749407066081,0.20562821,106400.0,106390.0,0.12817479]
[1749407066494,0.18801789,106400.0,106390.0,0.12817479]
[1749407066651,0.20562791,106400.0,106390.0,0.12817479]
[1749407066847,0.18801789,106400.0,106390.0,0.12817479]
[1749407067058,0.20562791,106400.0,106390.0,0.12817479]
[1749407068479,0.18801789,106400.0,106390.0,0.12817479]
[1749407068698,0.20562792,106400.0,106390.0,0.12817479]
[1749407069110,0.20562817,106400.0,106390.0,0.12817479]
[1749407069339,0.20562818,106400.0,106390.0,0.12817479]
[1749407070001,0.20563173,106400.0,106390.0,0.12817479]
[1749407070213,0.18801789,106400.0,106390.0,0.12817479]
[1749407070535,0.20563173,106400.0,106390.0,0.12817479]
[1749407070742,0.20563173,106400.0,106390.0,0.12817478]
[1749407070977,0.18801789,106400.0,106390.0,0.12817478]
[1749407071182,0.20563173,106400.0,106390.0,0.12817478]
[1749407071361,0.18801789,106400.0,106390.0,0.12817478]
[1749407071792,0.20563168,106400.0,106390.0,0.12817478]
[1749407072237,0.20563167,106400.0,106390.0,0.12817478]
[1749407072689,0.18801789,106400.0,106390.0,0.12817478]
[1749407072890,0.20563167,106400.0,106390.0,0.12817478]
[1749407073042,0.18801789,106400.0,106390.0,0.12817478]
[1749407073247,0.20563102,106400.0,106390.0,0.12817478]
[1749407075045,0.18801789,106400.0,106390.0,0.12817478]
[1749407075263,0.20563102,106400.0,106390.0,0.12817478]
[1749407075698,0.18801789,106400.0,106390.0,0.12817478]
[1749407075922,0.20563102,106400.0,106390.0,0.12817478]
[1749407076153,0.18801789,106400.0,106390.0,0.12817478]
[1749407076366,0.20563103,106400.0,106390.0,0.12817478]
[1749407076525,0.18801789,106400.0,106390.0,0.12817478]
[1749407076934,0.20563102,106400.0,106390.0,0.12817478]
[1749407077316,0.18801789,106400.0,106390.0,0.12817478]
[1749407077517,0.20563102,106400.0,106390.0,0.12817478]
[1749407077717,0.18801789,106400.0,106390.0,0.12817478]
[1749407077917,0.20563102,106400.0,106390.0,0.12817478]
[1749407078344,0.20563176,106400.0,106390.0,0.12817478]
[1749407078747,0.18801789,106400.0,106390.0,0.12817478]
[1749407078958,0.20563176,106400.0,106390.0,0.31616237]
[1749407079287,0.18801789,106400.0,106390.0,0.31616237]
[1749407079408,0.03645838,106400.0,106390.0,0.33496085]
[1749407079613,0.2244283,106400.0,106390.0,0.33496085]
[1749407079846,0.22442845,106400.0,106390.0,0.33496085]
[1749407080044,0.03645808,106400.0,106390.0,0.33496085]
[1749407080270,0.01884389,106400.0,106390.0,0.35375863]
[1749407080479,0.02824212,106400.0,106390.0,0.35375863]
[1749407080896,0.01884389,106400.0,106390.0,0.35375863]
[1749407081106,0.02824212,106400.0,106390.0,0.35375863]
[1749407081976,0.02824203,106400.0,106390.0,0.35375863]
[1749407082416,0.01884389,106400.0,106390.0,0.35375863]
[1749407082825,0.02824203,106400.0,106390.0,0.35375863]
[1749407083649,0.01884389,106400.0,106390.0,0.35375863]
[1749407083852,0.01884389,106400.0,106390.0,0.35375862]
[1749407084636,0.02824212,106400.0,106390.0,0.35375862]
[1749407085612,0.01884389,106400.0,106390.0,0.35375862]
[1749407085784,0.0282422,106400.0,106390.0,0.35375862]
[1749407085990,0.02824212,106400.0,106390.0,0.35375862]
[1749407086575,0.01884389,106400.0,106390.0,0.35375862]
[1749407086778,0.02824212,106400.0,106390.0,0.35375862]
[1749407087438,0.02824203,106400.0,106390.0,0.35375862]
[1749407087647,0.03764034,106400.0,106390.0,0.35375862]
[1749407088040,0.02824203,106400.0,106390.0,0.35375862]
[1749407088265,0.03764034,106400.0,106390.0,0.35375862]
[1749407088879,0.04703874,106400.0,106390.0,0.35375862]
[1749407089474,0.04703936,106400.0,106390.0,0.35375862]
[1749407091627,0.04703936,106400.0,106390.0,0.35375879]
[1749407091829,0.22561123,106400.0,106390.0,0.35375879]
[1749407095590,0.19741638,106400.0,106390.0,0.31616236]
[1749407095796,0.19741638,106400.0,106390.0,0.32556156]
[1749407096610,0.19741638,106400.0,106390.0,0.32527428]
[1749407098373,0.19741638,106400.0,106390.0,0.32522399]
[1749407099408,0.19741638,106400.0,106390.0,0.31582479]
[1749407099619,0.19741638,106400.0,106390.0,0.32522416]
[1749407099769,0.18801789,106400.0,106390.0,0.32522416]
[1749407100532,0.18801789,106400.0,106390.0,0.1278372]
[1749407100745,0.18801789,106400.0,106390.0,0.0964372]
[1749407100957,0.18801789,106400.0,106390.0,8.801e-05]
[1749407107378,0.18801789,106400.0,106390.0,0.01538801]
[1749407110860,0.18801789,106400.0,106390.0,8.801e-05]
[1749407112523,0.18801789,106400.0,106390.0,0.01628801]
[1749407113406,0.18801789,106400.0,106390.0,0.03158801]
[1749407114976,0.23234736,106400.0,106390.0,0.03158801]
[1749407118831,0.18801789,106400.0,106390.0,0.03158801]
[1749407119991,0.20562858,106400.0,106390.0,0.03158801]
[1749407120192,0.20562889,106400.0,106390.0,0.03158801]
[1749407120968,0.18801789,106400.0,106390.0,0.03158801]
[1749407121165,0.20563005,106400.0,106390.0,0.03158801]
[1749407122866,0.18801789,106400.0,106390.0,0.03158801]
[1749407123081,0.20563286,106400.0,106390.0,0.03158801]
[1749407123284,0.18801789,106400.0,106390.0,0.03158801]
[1749407123491,0.20563287,106400.0,106390.0,0.03158801]
[1749407123713,0.23058641,106400.0,106390.0,0.03158801]
[1749407123941,0.24820139,106400.0,106390.0,0.03158801]
[1749407124394,0.24820138,106400.0,106390.0,0.03158801]
[1749407124569,0.23058641,106400.0,106390.0,0.03158801]
[1749407125402,0.24820139,106400.0,106390.0,0.03158801]
[1749407126015,0.23058641,106400.0,106390.0,0.03158801]
[1749407126451,0.24820625,106400.0,106390.0,0.03158801]
[1749407126720,0.24820626,106400.0,106390.0,0.03158801]
[1749407127579,0.23058641,106400.0,106390.0,0.03158801]
[1749407128267,0.2482111,106400.0,106390.0,0.03158801]
[1749407128730,0.20564258,106400.0,106390.0,0.03158801]
[1749407129387,0.20564255,106400.0,106390.0,0.03158801]
[1749407129590,0.20564254,106400.0,106390.0,0.03158801]
[1749407129819,0.20564255,106400.0,106390.0,0.03158801]
[1749407130255,0.18801789,106400.0,106390.0,0.03158801]
[1749407130669,0.20564231,106400.0,106390.0,0.03158801]
[1749407130869,0.20564226,106400.0,106390.0,0.03158801]
[1749407131597,0.2056421,106400.0,106390.0,0.03158801]
[1749407132248,0.18801789,106400.0,106390.0,0.03158801]
[1749407132650,0.20564204,106400.0,106390.0,0.03158801]
[1749407132854,0.18801789,106400.0,106390.0,0.03158801]
[1749407132999,0.20564187,106400.0,106390.0,0.03158801]
[1749407133235,0.18801789,106400.0,106390.0,0.03158801]
[1749407133435,0.20564185,106400.0,106390.0,0.03158801]
[1749407133642,0.25918134,106400.0,106390.0,0.03158801]
[1749407134094,0.24155753,106400.0,106390.0,0.03158801]
[1749407134298,0.25918127,106400.0,106390.0,0.03158801]
[1749407134670,0.24155753,106400.0,106390.0,0.03158801]
[1749407135090,0.25918124,106400.0,106390.0,0.03158801]
[1749407135286,0.24155753,106400.0,106390.0,0.03158801]
[1749407135466,0.25918145,106400.0,106390.0,0.03158801]
[1749407135664,0.24155753,106400.0,106390.0,0.03158801]
[1749407135912,0.25918135,106400.0,106390.0,0.03158801]
[1749407136519,0.25917988,106400.0,106390.0,0.03158801]
[1749407136957,0.24155753,106400.0,106390.0,0.03158801]
[1749407137347,0.25917987,106400.0,106390.0,0.03158801]
[1749407137926,0.24155753,106400.0,106390.0,0.03158801]
[1749407138364,0.25917977,106400.0,106390.0,0.03158801]
[1749407138976,0.24155753,106400.0,106390.0,0.03158801]
[1749407139206,0.25917977,106400.0,106390.0,0.03158801]
[1749407139418,0.24155753,106400.0,106390.0,0.03158801]
[1749407139827,0.25917965,106400.0,106390.0,0.03158801]
[1749407140382,0.24155753,106400.0,106390.0,0.03158801]
[1749407140954,0.25917967,106400.0,106390.0,0.03158801]
[1749407141158,0.25917969,106400.0,106390.0,0.03158801]
[1749407141590,0.24155753,106400.0,106390.0,0.03158801]
[1749407141748,0.25917975,106400.0,106390.0,0.03158801]
[1749407141952,0.24155753,106400.0,106390.0,0.03158801]
[1749407142200,0.25917968,106400.0,106390.0,0.03158801]
[1749407142345,0.25917966,106400.0,106390.0,0.03158801]
[1749407142724,0.24155753,106400.0,106390.0,0.03158801]
[1749407142967,0.25917966,106400.0,106390.0,0.03158801]
[1749407143186,0.24155753,106400.0,106390.0,0.03158801]
[1749407143407,0.25917949,106400.0,106390.0,0.03158801]
[1749407143845,0.25917948,106400.0,106390.0,0.03158801]
[1749407144021,0.24155753,106400.0,106390.0,0.03158801]
[1749407144270,0.25917948,106400.0,106390.0,0.03158801]
[1749407144542,0.24155753,106400.0,106390.0,0.03158801]
[1749407144755,0.25917873,106400.0,106390.0,0.03158801]
[1749407144967,0.18801789,106400.0,106390.0,0.03158801]
[1749407145212,0.20563865,106400.0,106390.0,0.03158801]
[1749407145670,0.18801789,106400.0,106390.0,0.03158801]
[1749407146127,0.20563865,106400.0,106390.0,0.03158801]
[1749407146331,0.18801789,106400.0,106390.0,0.03158801]
[1749407146551,0.18801789,106400.0,106390.0,8.801e-05]
[1749407146552,0.89927721,106400.0,106390.0,8.801e-05]
[1749407146770,1.12979469,106400.0,106390.0,8.801e-05]
[1749407146973,1.10161662,106400.0,106390.0,8.801e-05]
[1749407147106,1.1204223,106400.0,106390.0,8.801e-05]
[1749407147308,1.1016099,106400.0,106390.0,8.801e-05]
[1749407147716,1.15795404,106400.0,106390.0,8.801e-05]
[1749407147915,1.15790604,106400.0,106390.0,8.801e-05]
[1749407148295,1.16190606,106400.0,106390.0,8.801e-05]
[1749407148531,1.10556182,106400.0,106390.0,8.801e-05]
[1749407148726,1.08394583,106400.0,106390.0,8.801e-05]
[1749407148955,1.08994583,106400.0,106390.0,8.801e-05]
[1749407149329,1.11806581,106400.0,106390.0,8.801e-05]
[1749407149537,1.13568139,106400.0,106390.0,8.801e-05]
[1749407149963,1.11806581,106400.0,106390.0,8.801e-05]
[1749407150339,1.13968139,106400.0,106390.0,8.801e-05]
[1749407150545,1.12206581,106400.0,106390.0,8.801e-05]
[1749407150788,1.13968136,106400.0,106390.0,8.801e-05]
[1749407151011,1.12206581,106400.0,106390.0,8.801e-05]
[1749407151414,1.13968133,106400.0,106390.0,8.801e-05]
[1749407152166,0.70402253,106400.0,106390.0,8.801e-05]
[1749407152411,1.00737048,106400.0,106390.0,8.801e-05]
[1749407152629,0.98979507,106400.0,106390.0,8.801e-05]
[1749407152839,1.0073425,106400.0,106390.0,8.801e-05]
[1749407153045,1.00734255,106400.0,106390.0,8.801e-05]
[1749407153255,0.63442255,106400.0,106390.0,8.801e-05]
[1749407153467,1.07139536,106400.0,106390.0,8.801e-05]
[1749407153674,1.05384789,106400.0,106390.0,8.801e-05]
[1749407153883,1.07139536,106400.0,106390.0,8.801e-05]
[1749407154095,1.05384789,106400.0,106390.0,8.801e-05]
[1749407154304,0.96151207,106400.0,106390.0,8.801e-05]
[1749407154666,0.9790596,106400.0,106390.0,8.801e-05]
[1749407154853,0.95093967,106400.0,106390.0,8.801e-05]
[1749407155066,0.93339209,106400.0,106390.0,8.801e-05]
[1749407155470,0.95093967,106400.0,106390.0,8.801e-05]
[1749407155677,0.93339209,106400.0,106390.0,8.801e-05]
[1749407155886,0.95092519,106400.0,106390.0,8.801e-05]
[1749407156132,0.64767209,106400.0,106390.0,8.801e-05]
[1749407156373,0.6652052,106400.0,106390.0,8.801e-05]
[1749407156828,0.64767209,106400.0,106390.0,8.801e-05]
[1749407157051,0.76160468,106400.0,106390.0,8.801e-05]
[1749407157950,0.67444468,106400.0,106390.0,8.801e-05]
[1749407158190,1.02979157,106400.0,106390.0,8.801e-05]
[1749407158351,1.04732468,106400.0,106390.0,8.801e-05]
[1749407158547,1.02979157,106400.0,106390.0,8.801e-05]
[1749407158776,1.04732468,106400.0,106390.0,8.801e-05]
[1749407159394,1.02979157,106400.0,106390.0,8.801e-05]
[1749407159845,1.04732468,106400.0,106390.0,8.801e-05]
[1749407160863,0.56051209,106400.0,106390.0,8.801e-05]
[1749407161080,0.56051209,106400.0,106390.0,0.03238801]
[1749407161081,0.93339209,106400.0,106390.0,0.03238801]
[1749407161295,0.95092602,106400.0,106390.0,0.03238801]
[1749407161517,0.9509261,106400.0,106390.0,0.03238801]
[1749407161797,0.95092612,106400.0,106390.0,0.03238801]
[1749407162006,0.19796992,106400.0,106390.0,0.22977489]
[1749407162842,0.02879593,106400.0,106390.0,0.34497215]
[1749407163065,0.22616425,106400.0,106390.0,0.33557339]
[1749407163262,0.22616425,106400.0,106390.0,0.32617437]
[1749407163464,0.21676655,106400.0,106390.0,0.33557357]
[1749407163692,0.21076655,106400.0,106390.0,0.33557357]
[1749407163890,0.21476655,106400.0,106390.0,0.33557357]
[1749407164256,0.21076655,106400.0,106390.0,0.33557357]
[1749407165196,0.21076655,106400.0,106390.0,0.12878749]
[1749407165556,0.21276655,106400.0,106390.0,0.33557374]
[1749407169759,0.20336832,106400.0,106390.0,0.33557374]
[1749407171108,0.20336832,106400.0,106390.0,0.32617445]
[1749407171318,0.19396992,106400.0,106390.0,0.13818686]
[1749407172808,0.19396992,106400.0,106390.0,0.12878749]
[1749407174349,0.23391838,106400.0,106390.0,8.801e-05]
[1749407175700,0.32103838,106400.0,106390.0,8.801e-05]
[1749407175905,0.33860588,106400.0,106390.0,8.801e-05]
[1749407176099,0.33860597,106400.0,106390.0,8.801e-05]
[1749407176500,0.33860614,106400.0,106390.0,8.801e-05]
[1749407176710,0.33860617,106400.0,106390.0,8.801e-05]
[1749407177039,0.32103838,106400.0,106390.0,8.801e-05]
[1749407177624,0.33860634,106400.0,106390.0,8.801e-05]
[1749407177827,0.33860641,106400.0,106390.0,8.801e-05]
[1749407178010,0.3386073,106400.0,106390.0,8.801e-05]
[1749407178226,0.32103838,106400.0,106390.0,8.801e-05]
[1749407178352,0.33860846,106400.0,106390.0,8.801e-05]
[1749407178868,0.33860848,106400.0,106390.0,8.801e-05]
[1749407179045,0.32103838,106400.0,106390.0,8.801e-05]
[1749407179278,0.33860843,106400.0,106390.0,8.801e-05]
[1749407179429,0.33864843,106400.0,106390.0,8.801e-05]
[1749407179633,0.66107838,106400.0,106390.0,8.801e-05]
[1749407179835,0.71575467,106400.0,106390.0,8.801e-05]
[1749407180033,0.73332388,106400.0,106390.0,8.801e-05]
[1749407180242,0.76141839,106400.0,106390.0,8.801e-05]
[1749407180445,0.76141836,106400.0,106390.0,8.801e-05]
[1749407180642,0.74385004,106400.0,106390.0,8.801e-05]
[1749407181159,0.76141896,106400.0,106390.0,8.801e-05]
[1749407181375,0.74385004,106400.0,106390.0,8.801e-05]
[1749407181528,0.76142248,106400.0,106390.0,8.801e-05]
[1749407181732,0.85782303,106400.0,106390.0,8.801e-05]
[1749407181933,0.85782305,106400.0,106390.0,8.801e-05]
[1749407182751,0.84024952,106400.0,106390.0,8.801e-05]
[1749407182982,0.85785845,106400.0,106390.0,8.801e-05]
[1749407183581,0.84024952,106400.0,106390.0,8.801e-05]
[1749407183829,0.85785845,106400.0,106390.0,8.801e-05]
[1749407184030,0.85785844,106400.0,106390.0,8.801e-05]
[1749407184403,0.85785845,106400.0,106390.0,8.801e-05]
[1749407184906,0.85785843,106400.0,106390.0,8.801e-05]
[1749407185523,0.84024952,106400.0,106390.0,8.801e-05]
[1749407185742,0.8578247,106400.0,106390.0,8.801e-05]
[1749407185897,0.85782471,106400.0,106390.0,8.801e-05]
[1749407186099,0.84024952,106400.0,106390.0,8.801e-05]
[1749407186296,0.85782471,106400.0,106390.0,8.801e-05]
[1749407187757,0.84024952,106400.0,106390.0,8.801e-05]
[1749407187928,0.85782471,106400.0,106390.0,8.801e-05]
[1749407188131,0.84024952,106400.0,106390.0,8.801e-05]
[1749407188461,0.85782471,106400.0,106390.0,8.801e-05]
[1749407188670,0.8578247,106400.0,106390.0,8.801e-05]
[1749407188874,0.84024952,106400.0,106390.0,8.801e-05]
[1749407189080,0.85782011,106400.0,106390.0,8.801e-05]
[1749407189305,0.85782012,106400.0,106390.0,8.801e-05]
[1749407189521,0.85782015,106400.0,106390.0,8.801e-05]
[1749407189727,0.84024952,106400.0,106390.0,8.801e-05]
[1749407190147,0.85782015,106400.0,106390.0,8.801e-05]
[1749407190322,0.84024952,106400.0,106390.0,8.801e-05]
[1749407190782,0.85782016,106400.0,106390.0,8.801e-05]
[1749407190982,0.84024952,106400.0,106390.0,8.801e-05]
[1749407191664,0.85782017,106400.0,106390.0,8.801e-05]
[1749407192071,0.84024952,106400.0,106390.0,8.801e-05]
[1749407192388,0.85781109,106400.0,106390.0,8.801e-05]
[1749407192593,0.84024952,106400.0,106390.0,8.801e-05]
[1749407192996,0.85781109,106400.0,106390.0,8.801e-05]
[1749407193399,0.84024952,106400.0,106390.0,8.801e-05]
[1749407193630,0.85781109,106400.0,106390.0,8.801e-05]
[1749407193908,0.85780939,106400.0,106390.0,8.801e-05]
[1749407194124,0.84024952,106400.0,106390.0,8.801e-05]
[1749407194329,0.85780939,106400.0,106390.0,8.801e-05]
[1749407194537,0.84024952,106400.0,106390.0,8.801e-05]
[1749407194937,0.85780939,106400.0,106390.0,8.801e-05]
[1749407195319,0.85780942,106400.0,106390.0,8.801e-05]
[1749407195514,0.84024952,106400.0,106390.0,8.801e-05]
[1749407195836,0.85780942,106400.0,106390.0,8.801e-05]
[1749407196037,0.84024952,106400.0,106390.0,8.801e-05]
[1749407196383,0.93923952,106400.0,106390.0,8.801e-05]
[1749407196609,1.02677146,106400.0,106390.0,8.801e-05]
[1749407196809,1.04432907,106400.0,106390.0,8.801e-05]
[1749407197061,1.04432901,106400.0,106390.0,8.801e-05]
[1749407197409,1.02677146,106400.0,106390.0,8.801e-05]
[1749407197607,1.03238946,106400.0,106390.0,8.801e-05]
[1749407197877,1.03738946,106400.0,106390.0,8.801e-05]
[1749407198066,1.06563546,106400.0,106390.0,8.801e-05]
[1749407198277,1.08319306,106400.0,106390.0,8.801e-05]
[1749407198511,1.08119305,106400.0,106390.0,8.801e-05]
[1749407198920,1.06763546,106400.0,106390.0,8.801e-05]
[1749407199066,1.08519228,106400.0,106390.0,8.801e-05]
[1749407199285,1.06763546,106400.0,106390.0,8.801e-05]
[1749407199667,1.07557411,106400.0,106390.0,8.801e-05]
[1749407200558,1.04747781,106400.0,106390.0,8.801e-05]
[1749407200925,1.04752757,106400.0,106390.0,8.801e-05]
[1749407201518,1.04752766,106400.0,106390.0,8.801e-05]
[1749407201744,0.97992209,106400.0,106390.0,8.801e-05]
[1749407201965,1.04752763,106400.0,106390.0,8.801e-05]
[1749407202137,1.02992209,106400.0,106390.0,8.801e-05]
[1749407202573,1.04752764,106400.0,106390.0,8.801e-05]
[1749407202775,1.04752757,106400.0,106390.0,8.801e-05]
[1749407203008,1.02992209,106400.0,106390.0,8.801e-05]
[1749407203424,1.10387174,106400.0,106390.0,8.801e-05]
[1749407203545,1.08626633,106400.0,106390.0,8.801e-05]
[1749407204349,1.10387195,106400.0,106390.0,8.801e-05]
[1749407204578,1.10387196,106400.0,106390.0,8.801e-05]
[1749407204792,1.10387195,106400.0,106390.0,8.801e-05]
[1749407205020,1.08626633,106400.0,106390.0,8.801e-05]
[1749407205221,1.10387198,106400.0,106390.0,8.801e-05]
[1749407205450,1.10155057,106400.0,106390.0,8.801e-05]
[1749407205647,1.10155096,106400.0,106390.0,8.801e-05]
[1749407205821,1.10155103,106400.0,106390.0,8.801e-05]
[1749407205983,1.09352388,106400.0,106390.0,8.801e-05]
[1749407206187,1.11112999,106400.0,106390.0,8.801e-05]
[1749407206772,0.2068246,106370.0,106360.0,0.0308]
[1749407207845,0.22542916,106370.0,106360.0,0.0308]
[1749407208082,0.22542917,106370.0,106360.0,0.0308]
[1749407208284,0.2078246,106370.0,106360.0,0.0308]
[1749407208529,0.22542966,106370.0,106360.0,0.0308]
[1749407208717,0.2254298,106370.0,106360.0,0.0308]
[1749407208919,0.2078246,106370.0,106360.0,0.0308]
[1749407209608,0.22542978,106370.0,106360.0,0.0308]
[1749407209817,0.2078246,106370.0,106360.0,0.0308]
[1749407210160,0.22542978,106370.0,106360.0,0.0308]
[1749407210668,0.22542983,106370.0,106360.0,0.0308]
[1749407210883,0.2078246,106370.0,106360.0,0.0308]
[1749407212183,0.2078246,106370.0,106360.0,0.02964233]
[1749407234987,0.2949446,106370.0,106360.0,0.02964233]
[1749407236541,0.31749687,106370.0,106360.0,0.02964233]
[1749407241608,0.31749687,106370.0,106360.0,0.0156]
[1749407241609,0.4031904,106370.0,106360.0,0.0156]
[1749407241830,0.19744246,106360.0,106350.0,0.0322]
[1749407242617,0.21506889,106360.0,106350.0,0.0322]
[1749407242996,0.21506889,106360.0,106350.0,0.03424797]
[1749407243208,0.21506889,106360.0,106350.0,0.03524797]
[1749407244111,0.19744246,106360.0,106350.0,0.03524797]
[1749407244313,0.21506887,106360.0,106350.0,0.03524797]
[1749407244514,0.19744246,106360.0,106350.0,0.03524797]
[1749407244720,0.21506887,106360.0,106350.0,0.03524797]
[1749407245534,0.21506499,106360.0,106350.0,0.03524797]
[1749407245735,0.19744246,106360.0,106350.0,0.03524797]
[1749407245894,0.2150655,106360.0,106350.0,0.03524797]
[1749407246099,0.19744246,106360.0,106350.0,0.03524797]
[1749407246342,0.2150656,106360.0,106350.0,0.03524797]
[1749407246548,0.19744246,106360.0,106350.0,0.03524797]
[1749407246720,0.2150657,106360.0,106350.0,0.03524797]
[1749407247540,0.19744246,106360.0,106350.0,0.03524797]
[1749407247748,0.2150657,106360.0,106350.0,0.03524797]
[1749407247942,0.19744246,106360.0,106350.0,0.03524797]
[1749407248213,0.21506544,106360.0,106350.0,0.03524797]
[1749407248776,0.21506146,106360.0,106350.0,0.03524797]
[1749407249188,0.21506147,106360.0,106350.0,0.03524797]
[1749407249349,0.19744246,106360.0,106350.0,0.03524797]
[1749407249696,0.21506146,106360.0,106350.0,0.03524797]
[1749407250545,0.21505997,106360.0,106350.0,0.03524797]
[1749407250928,0.21506064,106360.0,106350.0,0.03524797]
[1749407251128,0.21506075,106360.0,106350.0,0.03524797]
[1749407251332,0.21506064,106360.0,106350.0,0.03524797]
[1749407252206,0.19744246,106360.0,106350.0,0.03524797]
[1749407252414,0.21506064,106360.0,106350.0,0.03524797]
[1749407252608,0.19744246,106360.0,106350.0,0.03524797]
[1749407253173,0.21506065,106360.0,106350.0,0.03524797]
[1749407253980,0.21506065,106360.0,106350.0,0.03224797]
[1749407254671,0.19744246,106360.0,106350.0,0.03224797]
[1749407254870,0.21506065,106360.0,106350.0,0.03224797]
[1749407255073,0.19744246,106360.0,106350.0,0.03224797]
[1749407255460,0.21505947,106360.0,106350.0,0.03224797]
[1749407255661,0.19744246,106360.0,106350.0,0.03224797]
[1749407256413,0.21505947,106360.0,106350.0,0.03224797]
[1749407256613,0.19744246,106360.0,106350.0,0.03224797]
[1749407256765,0.21505947,106360.0,106350.0,0.03224797]
[1749407256968,0.19744246,106360.0,106350.0,0.03224797]